[Event "*** Titled Tuesday Blitz"]
[Site "Chess.com"]
[Date "2021.02.16"]
[Round "9"]
[White "Khnykin_Nikolay"]
[Black "Cptn2"]
[Result "0-1"]
[WhiteElo "2051"]
[BlackElo "2328"]
[TimeControl "180+1"]
[EndTime "11:47:02 PST"]
[Termination "Cptn2 won by checkmate"]

1. e4 {[%clk 0:01:53.3]} 1... c5 {[%clk 0:02:58.2]} 2. Nf3 {[%clk 0:01:53.8]}
2... Nc6 {[%clk 0:02:58.1]} 3. d4 {[%clk 0:01:53.5]} 3... cxd4 {[%clk 0:02:59]}
4. c3 {[%clk 0:01:53.9]} 4... g6 {[%clk 0:02:59.9]} 5. cxd4 {[%clk 0:01:53.7]}
5... Bg7 {[%clk 0:03:00.5]} 6. Bc4 {[%clk 0:01:52.2]} 6... d6 {[%clk 0:03:00]}
7. Nc3 {[%clk 0:01:48.7]} 7... Nf6 {[%clk 0:02:58.9]} 8. e5 {[%clk 0:01:46]}
8... dxe5 {[%clk 0:02:58.2]} 9. dxe5 {[%clk 0:01:45.9]} 9... Qxd1+ {[%clk
0:02:58.3]} 10. Nxd1 {[%clk 0:01:45.1]} 10... Ng4 {[%clk 0:02:57.1]} 11. Ng5
{[%clk 0:01:34.4]} 11... Ngxe5 {[%clk 0:02:56.6]} 12. Bb3 {[%clk 0:01:32.8]}
12... h6 {[%clk 0:02:55.7]} 13. Ne4 {[%clk 0:01:29.5]} 13... Nd3+ {[%clk
0:02:53.9]} 14. Ke2 {[%clk 0:01:26.6]} 14... Nxc1+ {[%clk 0:02:51.7]} 15. Rxc1
{[%clk 0:01:27.5]} 15... O-O {[%clk 0:02:51.1]} 16. Re1 {[%clk 0:01:24.2]} 16...
Nd4+ {[%clk 0:02:44.2]} 17. Kf1 {[%clk 0:01:21.1]} 17... Nxb3 {[%clk 0:02:45.1]}
18. axb3 {[%clk 0:01:21.3]} 18... Be6 {[%clk 0:02:46]} 19. Ndc3 {[%clk
0:01:19.1]} 19... Rac8 {[%clk 0:02:43.5]} 20. f4 {[%clk 0:01:14.8]} 20... Bxb3
{[%clk 0:02:41.9]} 21. Nd2 {[%clk 0:01:12]} 21... Be6 {[%clk 0:02:40.6]} 22.
Ndb1 {[%clk 0:01:08.8]} 22... Bd4 {[%clk 0:02:38.3]} 23. Na3 {[%clk 0:01:05.4]}
23... a6 {[%clk 0:02:36.3]} 24. Re4 {[%clk 0:01:02]} 24... Rfd8 {[%clk
0:02:34.6]} 25. h3 {[%clk 0:00:58.9]} 25... b5 {[%clk 0:02:33]} 26. Nc2 {[%clk
0:00:55.5]} 26... Bc4+ {[%clk 0:02:29.2]} 27. Ke1 {[%clk 0:00:53.2]} 27... Bf6
{[%clk 0:02:23.9]} 28. g4 {[%clk 0:00:50.3]} 28... e6 {[%clk 0:02:22.8]} 29. Nb4
{[%clk 0:00:49.5]} 29... a5 {[%clk 0:02:21.6]} 30. Nc2 {[%clk 0:00:47.5]} 30...
Bd3 {[%clk 0:02:21.5]} 31. Re3 {[%clk 0:00:45.8]} 31... b4 {[%clk 0:02:20.6]}
32. Na4 {[%clk 0:00:42.9]} 32... Rxc2 {[%clk 0:02:14.8]} 33. Rxc2 {[%clk
0:00:39.4]} 33... Bxc2 {[%clk 0:02:15.7]} 34. Nc5 {[%clk 0:00:17.2]} 34... Bd4
{[%clk 0:02:13.8]} 35. Rg3 {[%clk 0:00:15.4]} 35... Bxc5 {[%clk 0:02:05.6]} 36.
b3 {[%clk 0:00:12.2]} 36... Rd3 {[%clk 0:02:04.1]} 37. Rxd3 {[%clk 0:00:09.2]}
37... Bxd3 {[%clk 0:02:05]} 38. g5 {[%clk 0:00:09.8]} 38... Bc2 {[%clk
0:02:04.1]} 39. h4 {[%clk 0:00:08.5]} 39... Bxb3 {[%clk 0:02:05]} 40. h5 {[%clk
0:00:09.3]} 40... gxh5 {[%clk 0:02:04.2]} 41. gxh6 {[%clk 0:00:08.6]} 41... h4
{[%clk 0:02:05.1]} 42. f5 {[%clk 0:00:09.4]} 42... exf5 {[%clk 0:02:05.7]} 43.
h7+ {[%clk 0:00:09.3]} 43... Kxh7 {[%clk 0:02:05.7]} 44. Kf1 {[%clk 0:00:09.6]}
44... Bd5 {[%clk 0:02:06.5]} 45. Ke2 {[%clk 0:00:09.1]} 45... h3 {[%clk
0:02:07.2]} 46. Kf1 {[%clk 0:00:10]} 46... h2 {[%clk 0:02:08]} 47. Ke2 {[%clk
0:00:07.3]} 47... h1=Q {[%clk 0:02:08.9]} 48. Kd2 {[%clk 0:00:07.1]} 48... a4
{[%clk 0:02:09.8]} 49. Kc2 {[%clk 0:00:08]} 49... a3 {[%clk 0:02:09.9]} 50. Kd2
{[%clk 0:00:07.5]} 50... a2 {[%clk 0:02:10.6]} 51. Kd3 {[%clk 0:00:08.4]} 51...
a1=Q {[%clk 0:02:10.1]} 52. Kc2 {[%clk 0:00:09.3]} 52... Qc3# {[%clk 0:02:08.4]}
0-1

[Event "*** Titled Tuesday Blitz"]
[Site "Chess.com"]
[Date "2021.02.16"]
[Round "9"]
[White "zurzan"]
[Black "dodorox"]
[Result "0-1"]
[WhiteElo "2028"]
[BlackElo "2199"]
[TimeControl "180+1"]
[EndTime "11:47:03 PST"]
[Termination "dodorox won by resignation"]

1. f4 {[%clk 0:03:00.9]} 1... d5 {[%clk 0:02:58.5]} 2. Nf3 {[%clk 0:03:01]} 2...
Nf6 {[%clk 0:02:57.5]} 3. g3 {[%clk 0:03:01.2]} 3... b6 {[%clk 0:02:56.5]} 4.
Bg2 {[%clk 0:03:02.1]} 4... Bb7 {[%clk 0:02:56.9]} 5. O-O {[%clk 0:03:01.8]}
5... e6 {[%clk 0:02:55.9]} 6. d3 {[%clk 0:03:02.1]} 6... Be7 {[%clk 0:02:53.3]}
7. c3 {[%clk 0:03:03]} 7... c5 {[%clk 0:02:50.6]} 8. Qc2 {[%clk 0:03:03.9]} 8...
Nbd7 {[%clk 0:02:45.8]} 9. Na3 {[%clk 0:03:03.6]} 9... a6 {[%clk 0:02:44.6]} 10.
Bd2 {[%clk 0:02:53.6]} 10... Qc7 {[%clk 0:02:41.3]} 11. Rad1 {[%clk 0:02:52.3]}
11... O-O {[%clk 0:02:36.1]} 12. Rfe1 {[%clk 0:02:50.1]} 12... Rad8 {[%clk
0:02:18]} 13. e4 {[%clk 0:02:48.8]} 13... dxe4 {[%clk 0:02:14.8]} 14. dxe4
{[%clk 0:02:49.7]} 14... e5 {[%clk 0:02:14.9]} 15. fxe5 {[%clk 0:02:19.4]} 15...
Nxe5 {[%clk 0:02:06.7]} 16. Nxe5 {[%clk 0:02:19.4]} 16... Qxe5 {[%clk
0:02:05.2]} 17. Bf4 {[%clk 0:02:19.7]} 17... Qh5 {[%clk 0:01:41]} 18. Nc4 {[%clk
0:01:59.3]} 18... Rxd1 {[%clk 0:01:28.2]} 19. Rxd1 {[%clk 0:01:58.8]} 19... Nxe4
{[%clk 0:01:22.7]} 20. Rd7 {[%clk 0:01:38.9]} 20... Rd8 {[%clk 0:00:56.4]} 21.
Rxb7 {[%clk 0:01:26.5]} 21... Rd1+ {[%clk 0:00:51.4]} 22. Bf1 {[%clk 0:01:25.6]}
22... Qf3 {[%clk 0:00:25.4]} 23. Qe2 {[%clk 0:00:48.6]} 23... Qxe2 {[%clk
0:00:22.3]} 24. Rb8+ {[%clk 0:00:38.5]} 24... Bf8 {[%clk 0:00:20.3]} 0-1

[Event "*** Titled Tuesday Blitz"]
[Site "Chess.com"]
[Date "2021.02.16"]
[Round "9"]
[White "Titus369"]
[Black "Unknown_IM"]
[Result "1-0"]
[WhiteElo "2567"]
[BlackElo "2396"]
[TimeControl "180+1"]
[EndTime "11:47:20 PST"]
[Termination "Titus369 won by checkmate"]

1. e4 {[%clk 0:03:00.9]} 1... e5 {[%clk 0:02:58.9]} 2. Nf3 {[%clk 0:03:00.9]}
2... Nc6 {[%clk 0:02:58.7]} 3. Bb5 {[%clk 0:03:01.3]} 3... a6 {[%clk 0:02:58.1]}
4. Ba4 {[%clk 0:03:01.5]} 4... Nf6 {[%clk 0:02:57.9]} 5. O-O {[%clk 0:02:59]}
5... Be7 {[%clk 0:02:58.1]} 6. d3 {[%clk 0:02:58.2]} 6... b5 {[%clk 0:02:55.9]}
7. Bb3 {[%clk 0:02:58.2]} 7... d6 {[%clk 0:02:56.4]} 8. a3 {[%clk 0:02:58.3]}
8... O-O {[%clk 0:02:54.9]} 9. Nc3 {[%clk 0:02:58.5]} 9... Bg4 {[%clk
0:02:52.7]} 10. Be3 {[%clk 0:02:58.9]} 10... Nd4 {[%clk 0:02:51.7]} 11. Bxd4
{[%clk 0:02:58.6]} 11... exd4 {[%clk 0:02:51.5]} 12. Nd5 {[%clk 0:02:59.4]}
12... Nxd5 {[%clk 0:02:50.8]} 13. Bxd5 {[%clk 0:03:00.3]} 13... Rb8 {[%clk
0:02:50.8]} 14. h3 {[%clk 0:03:00.8]} 14... Bxf3 {[%clk 0:02:43.1]} 15. Qxf3
{[%clk 0:03:01.7]} 15... c5 {[%clk 0:02:41.3]} 16. b4 {[%clk 0:02:50.6]} 16...
Qc7 {[%clk 0:02:37.3]} 17. Qe2 {[%clk 0:02:41.1]} 17... Rbc8 {[%clk 0:02:34.6]}
18. Ra2 {[%clk 0:02:39.6]} 18... Bf6 {[%clk 0:02:26.9]} 19. f4 {[%clk
0:02:38.5]} 19... Rfe8 {[%clk 0:02:26.6]} 20. g4 {[%clk 0:02:34.2]} 20... g6
{[%clk 0:02:13.3]} 21. g5 {[%clk 0:02:28.7]} 21... Bg7 {[%clk 0:02:12.8]} 22. h4
{[%clk 0:02:29.2]} 22... Qd7 {[%clk 0:02:03.2]} 23. Qg2 {[%clk 0:02:24.9]} 23...
c4 {[%clk 0:02:03]} 24. f5 {[%clk 0:02:10.6]} 24... Rf8 {[%clk 0:00:45.9]} 25.
f6 {[%clk 0:02:01.9]} 25... Bh8 {[%clk 0:00:44.7]} 26. Raa1 {[%clk 0:01:37.4]}
26... cxd3 {[%clk 0:00:38.9]} 27. cxd3 {[%clk 0:01:38.3]} 27... Rc3 {[%clk
0:00:38.9]} 28. Rf3 {[%clk 0:01:26.1]} 28... Rfc8 {[%clk 0:00:34.1]} 29. Raf1
{[%clk 0:01:21.6]} 29... h5 {[%clk 0:00:22.2]} 30. gxh6 {[%clk 0:01:19.3]} 30...
Kh7 {[%clk 0:00:21.4]} 31. h5 {[%clk 0:01:19.4]} 31... Rg8 {[%clk 0:00:16.4]}
32. Rg3 {[%clk 0:01:16]} 32... g5 {[%clk 0:00:06]} 33. Rxg5 {[%clk 0:01:10]}
33... Rxg5 {[%clk 0:00:04.8]} 34. Qxg5 {[%clk 0:01:10.9]} 34... Rxd3 {[%clk
0:00:04.9]} 35. e5 {[%clk 0:01:06.7]} 35... Re3 {[%clk 0:00:04.9]} 36. e6 {[%clk
0:01:02.6]} 36... fxe6 {[%clk 0:00:03.9]} 37. Qg6# {[%clk 0:01:02.6]} 1-0

[Event "*** Titled Tuesday Blitz"]
[Site "Chess.com"]
[Date "2021.02.16"]
[Round "9"]
[White "Kale36"]
[Black "c_r_e_e_p_e_r"]
[Result "0-1"]
[WhiteElo "2228"]
[BlackElo "2379"]
[TimeControl "180+1"]
[EndTime "11:47:26 PST"]
[Termination "c_r_e_e_p_e_r won by resignation"]

1. d4 {[%clk 0:03:00.9]} 1... Nf6 {[%clk 0:03:00]} 2. Nc3 {[%clk 0:03:00.4]}
2... g6 {[%clk 0:03:00.6]} 3. Bg5 {[%clk 0:03:00]} 3... d5 {[%clk 0:02:55.2]} 4.
Qd2 {[%clk 0:02:57.2]} 4... Bg7 {[%clk 0:02:55.1]} 5. Bh6 {[%clk 0:02:57]} 5...
O-O {[%clk 0:02:49]} 6. Bxg7 {[%clk 0:02:55.9]} 6... Kxg7 {[%clk 0:02:49.9]} 7.
e3 {[%clk 0:02:55.5]} 7... c5 {[%clk 0:02:49.4]} 8. dxc5 {[%clk 0:02:53.4]} 8...
Na6 {[%clk 0:02:48.2]} 9. Qd4 {[%clk 0:02:42.7]} 9... Qa5 {[%clk 0:02:44.4]} 10.
a3 {[%clk 0:02:36.6]} 10... Qxc5 {[%clk 0:02:40.7]} 11. Qxc5 {[%clk 0:02:36.6]}
11... Nxc5 {[%clk 0:02:41.6]} 12. O-O-O {[%clk 0:02:36.6]} 12... Nce4 {[%clk
0:02:32.9]} 13. Nxe4 {[%clk 0:02:21.3]} 13... Nxe4 {[%clk 0:02:33.8]} 14. Rd2
{[%clk 0:02:10.5]} 14... Nxd2 {[%clk 0:02:33.3]} 15. Kxd2 {[%clk 0:02:11.4]}
15... Be6 {[%clk 0:02:29.7]} 16. c3 {[%clk 0:02:08.7]} 16... f6 {[%clk
0:02:29.8]} 17. f4 {[%clk 0:02:07.8]} 17... Bf7 {[%clk 0:02:30.4]} 18. Nf3
{[%clk 0:02:06.8]} 18... Rfe8 {[%clk 0:02:31.1]} 19. h4 {[%clk 0:02:01.9]} 19...
a6 {[%clk 0:02:26.2]} 20. Bd3 {[%clk 0:01:55.6]} 20... e5 {[%clk 0:02:26.1]} 21.
fxe5 {[%clk 0:01:50.5]} 21... fxe5 {[%clk 0:02:27]} 22. Ng5 {[%clk 0:01:45.6]}
22... h6 {[%clk 0:02:18.3]} 23. Nxf7 {[%clk 0:01:37.9]} 23... Kxf7 {[%clk
0:02:19.2]} 24. h5 {[%clk 0:01:38.4]} 24... gxh5 {[%clk 0:02:16.9]} 25. Rxh5
{[%clk 0:01:37.2]} 25... Kg7 {[%clk 0:02:16.7]} 26. Bf5 {[%clk 0:01:33.3]} 26...
Rf8 {[%clk 0:02:11]} 27. g4 {[%clk 0:01:32.9]} 27... Rae8 {[%clk 0:02:09.5]} 28.
Kd3 {[%clk 0:01:23]} 28... Rf6 {[%clk 0:02:08.6]} 29. Rh2 {[%clk 0:01:21.4]}
29... Rb6 {[%clk 0:02:05.4]} 30. b4 {[%clk 0:01:20.8]} 30... Rf6 {[%clk
0:01:58.3]} 31. e4 {[%clk 0:01:19.6]} 31... dxe4+ {[%clk 0:01:42.4]} 32. Kxe4
{[%clk 0:01:20.5]} 32... Re7 {[%clk 0:01:37.4]} 33. Rd2 {[%clk 0:01:19.1]} 33...
Rc6 {[%clk 0:01:36.7]} 34. Rd3 {[%clk 0:01:12.5]} 34... Rec7 {[%clk 0:01:32.9]}
35. Kxe5 {[%clk 0:00:57.5]} 35... Rxc3 {[%clk 0:01:33.1]} 36. Rd6 {[%clk
0:00:49.6]} 36... R3c6 {[%clk 0:01:26.2]} 37. Rxc6 {[%clk 0:00:46.1]} 37... Rxc6
{[%clk 0:01:25.2]} 38. Be4 {[%clk 0:00:46.3]} 38... Rc3 {[%clk 0:01:01.4]} 39.
Bxb7 {[%clk 0:00:45.8]} 39... Rxa3 {[%clk 0:01:00.6]} 40. Kd4 {[%clk 0:00:46]}
40... Kf6 {[%clk 0:00:57]} 41. Kc5 {[%clk 0:00:44.6]} 41... Kg5 {[%clk
0:00:45.3]} 42. Bc8 {[%clk 0:00:43.1]} 42... Rc3+ {[%clk 0:00:43.9]} 43. Kb6
{[%clk 0:00:43.4]} 43... Rxc8 {[%clk 0:00:43.5]} 44. Kxa6 {[%clk 0:00:42.4]}
44... Kxg4 {[%clk 0:00:43.1]} 0-1

[Event "*** Titled Tuesday Blitz"]
[Site "Chess.com"]
[Date "2021.02.16"]
[Round "9"]
[White "goldihouse"]
[Black "Gabrielian_Artur"]
[Result "0-1"]
[WhiteElo "2556"]
[BlackElo "2798"]
[TimeControl "180+1"]
[EndTime "11:47:29 PST"]
[Termination "Gabrielian_Artur won on time"]

1. c4 {[%clk 0:03:00.9]} 1... Nf6 {[%clk 0:02:56.8]} 2. g3 {[%clk 0:03:01.4]}
2... g6 {[%clk 0:02:56.4]} 3. Bg2 {[%clk 0:03:01.7]} 3... Bg7 {[%clk 0:02:56.8]}
4. Nc3 {[%clk 0:03:02.3]} 4... O-O {[%clk 0:02:56.7]} 5. e4 {[%clk 0:03:02.6]}
5... d6 {[%clk 0:02:55.7]} 6. Nge2 {[%clk 0:03:03.2]} 6... c5 {[%clk 0:02:55.2]}
7. O-O {[%clk 0:03:03.7]} 7... Nc6 {[%clk 0:02:55.4]} 8. a3 {[%clk 0:03:04.3]}
8... Ne8 {[%clk 0:02:50.6]} 9. Rb1 {[%clk 0:03:04.5]} 9... a5 {[%clk 0:02:43.7]}
10. d3 {[%clk 0:03:04.7]} 10... Nc7 {[%clk 0:02:43.3]} 11. Nd5 {[%clk
0:03:05.3]} 11... Bg4 {[%clk 0:02:27.9]} 12. f3 {[%clk 0:03:02.3]} 12... Be6
{[%clk 0:02:24.5]} 13. Bd2 {[%clk 0:02:37.3]} 13... Bxd5 {[%clk 0:02:23.1]} 14.
exd5 {[%clk 0:02:36.8]} 14... Nd4 {[%clk 0:02:23.3]} 15. a4 {[%clk 0:02:24.4]}
15... Na6 {[%clk 0:02:20.4]} 16. Bc3 {[%clk 0:02:19.4]} 16... Nxe2+ {[%clk
0:02:16.5]} 17. Qxe2 {[%clk 0:02:20.3]} 17... Nb4 {[%clk 0:02:16]} 18. f4 {[%clk
0:02:15.3]} 18... Qd7 {[%clk 0:02:12.6]} 19. Bxg7 {[%clk 0:02:13.9]} 19... Kxg7
{[%clk 0:02:12.5]} 20. b3 {[%clk 0:02:14.7]} 20... Rae8 {[%clk 0:02:11.5]} 21.
Rbe1 {[%clk 0:01:54]} 21... e6 {[%clk 0:02:06.4]} 22. dxe6 {[%clk 0:01:48.4]}
22... Rxe6 {[%clk 0:01:58]} 23. Qb2+ {[%clk 0:01:46.6]} 23... Kg8 {[%clk
0:01:57.3]} 24. Rxe6 {[%clk 0:00:47.7]} 24... Qxe6 {[%clk 0:01:57.2]} 25. Qd2
{[%clk 0:00:47.1]} 25... Re8 {[%clk 0:01:48.8]} 26. Rd1 {[%clk 0:00:46.7]} 26...
b6 {[%clk 0:01:47.3]} 27. d4 {[%clk 0:00:39.5]} 27... Qf6 {[%clk 0:01:32.1]} 28.
dxc5 {[%clk 0:00:26.8]} 28... dxc5 {[%clk 0:01:31.5]} 29. Bf3 {[%clk 0:00:20.5]}
29... Kg7 {[%clk 0:01:24.4]} 30. Kg2 {[%clk 0:00:18.9]} 30... h5 {[%clk
0:01:19.8]} 31. h4 {[%clk 0:00:13]} 31... Re6 {[%clk 0:01:18.8]} 32. Bd5 {[%clk
0:00:11.9]} 32... Re7 {[%clk 0:01:15.1]} 33. Bf3 {[%clk 0:00:11.5]} 33... Re6
{[%clk 0:01:03.4]} 34. Kf2 {[%clk 0:00:08.3]} 34... Qe7 {[%clk 0:00:55]} 35.
Qc3+ {[%clk 0:00:06.6]} 35... Kh7 {[%clk 0:00:53.9]} 0-1

[Event "*** Titled Tuesday Blitz"]
[Site "Chess.com"]
[Date "2021.02.16"]
[Round "9"]
[White "Neftegor"]
[Black "frankshar"]
[Result "1-0"]
[WhiteElo "2575"]
[BlackElo "2403"]
[TimeControl "180+1"]
[EndTime "11:47:32 PST"]
[Termination "Neftegor won on time"]

1. d4 {[%clk 0:03:00.9]} 1... Nf6 {[%clk 0:02:59.5]} 2. c4 {[%clk 0:03:00.2]}
2... e6 {[%clk 0:02:59.9]} 3. Nc3 {[%clk 0:03:00.1]} 3... Bb4 {[%clk 0:02:59.8]}
4. e3 {[%clk 0:03:00.3]} 4... c5 {[%clk 0:02:58.5]} 5. Bd3 {[%clk 0:02:59.6]}
5... Nc6 {[%clk 0:02:55.1]} 6. Ne2 {[%clk 0:02:58.4]} 6... d5 {[%clk 0:02:54]}
7. cxd5 {[%clk 0:02:58.3]} 7... exd5 {[%clk 0:02:52.5]} 8. a3 {[%clk 0:02:57]}
8... cxd4 {[%clk 0:02:47.2]} 9. axb4 {[%clk 0:02:56.3]} 9... dxc3 {[%clk
0:02:47.3]} 10. b5 {[%clk 0:02:55]} 10... Ne5 {[%clk 0:02:37.3]} 11. Nxc3 {[%clk
0:02:53.8]} 11... O-O {[%clk 0:02:32.7]} 12. Be2 {[%clk 0:02:53.3]} 12... Bf5
{[%clk 0:02:30.2]} 13. O-O {[%clk 0:02:49.7]} 13... Qd7 {[%clk 0:02:21.1]} 14.
f3 {[%clk 0:02:48.5]} 14... Rfd8 {[%clk 0:02:15.7]} 15. Qd4 {[%clk 0:02:46.6]}
15... Qe7 {[%clk 0:02:01.3]} 16. Rxa7 {[%clk 0:02:36.3]} 16... Rxa7 {[%clk
0:02:00]} 17. Qxa7 {[%clk 0:02:36]} 17... Nd3 {[%clk 0:01:56.8]} 18. Bxd3 {[%clk
0:02:18.8]} 18... Bxd3 {[%clk 0:01:57.7]} 19. Rd1 {[%clk 0:02:18.4]} 19... Bc4
{[%clk 0:01:47.8]} 20. Qd4 {[%clk 0:02:13.9]} 20... Bb3 {[%clk 0:01:38.7]} 21.
Re1 {[%clk 0:02:09.4]} 21... Qc7 {[%clk 0:01:31.4]} 22. Bd2 {[%clk 0:02:08.3]}
22... Qc4 {[%clk 0:01:29.8]} 23. Ne2 {[%clk 0:02:06.5]} 23... Rc8 {[%clk
0:01:25.5]} 24. Bc3 {[%clk 0:02:05.9]} 24... Qxb5 {[%clk 0:01:13.4]} 25. Qd2
{[%clk 0:02:04.1]} 25... Ne8 {[%clk 0:00:56.1]} 26. Nd4 {[%clk 0:02:00.2]} 26...
Qa4 {[%clk 0:00:55.8]} 27. Nf5 {[%clk 0:01:58.5]} 27... Qd7 {[%clk 0:00:51.1]}
28. e4 {[%clk 0:01:57.3]} 28... Qe6 {[%clk 0:00:30.5]} 29. Qg5 {[%clk
0:01:41.9]} 29... f6 {[%clk 0:00:30.5]} 30. Qg4 {[%clk 0:01:41.6]} 30... dxe4
{[%clk 0:00:25.6]} 31. Rxe4 {[%clk 0:01:36.8]} 31... Qb6+ {[%clk 0:00:24]} 32.
Kh1 {[%clk 0:01:29.1]} 32... Kf7 {[%clk 0:00:14.1]} 33. Re7+ {[%clk 0:01:25.9]}
33... Kf8 {[%clk 0:00:13.7]} 34. Rxg7 {[%clk 0:01:15.7]} 34... Qf2 {[%clk
0:00:07.9]} 35. Bb4+ {[%clk 0:01:06.7]} 35... Rc5 {[%clk 0:00:03.1]} 36. Bxc5+
{[%clk 0:01:06.5]} 36... Qxc5 {[%clk 0:00:04]} 37. h4 {[%clk 0:01:06.5]} 37...
Bf7 {[%clk 0:00:02.6]} 38. Rxh7 {[%clk 0:01:05.6]} 38... Qc1+ {[%clk 0:00:02.1]}
39. Kh2 {[%clk 0:01:04.8]} 39... Bg8 {[%clk 0:00:01.4]} 40. Qb4+ {[%clk
0:01:02.4]} 1-0

[Event "*** Titled Tuesday Blitz"]
[Site "Chess.com"]
[Date "2021.02.16"]
[Round "9"]
[White "BairaKovanova"]
[Black "remi04"]
[Result "0-1"]
[WhiteElo "2460"]
[BlackElo "2607"]
[TimeControl "180+1"]
[EndTime "11:47:33 PST"]
[Termination "remi04 won by resignation"]

1. e4 {[%clk 0:03:00.9]} 1... c5 {[%clk 0:02:59]} 2. Nf3 {[%clk 0:02:59.7]} 2...
d6 {[%clk 0:02:59.6]} 3. d3 {[%clk 0:02:59]} 3... Nf6 {[%clk 0:03:00.1]} 4. g3
{[%clk 0:02:58.9]} 4... Nc6 {[%clk 0:03:00.3]} 5. Bg2 {[%clk 0:02:59.4]} 5... g6
{[%clk 0:03:01]} 6. O-O {[%clk 0:02:59.1]} 6... Bg7 {[%clk 0:03:01.6]} 7. Nc3
{[%clk 0:02:58]} 7... O-O {[%clk 0:03:02.2]} 8. h3 {[%clk 0:02:57.5]} 8... e5
{[%clk 0:03:01.7]} 9. Be3 {[%clk 0:02:57.4]} 9... h6 {[%clk 0:03:00]} 10. Qd2
{[%clk 0:02:56.9]} 10... Kh7 {[%clk 0:02:59.5]} 11. Nh4 {[%clk 0:02:56.8]} 11...
Nh5 {[%clk 0:02:58.1]} 12. Kh2 {[%clk 0:02:45.7]} 12... f5 {[%clk 0:02:57]} 13.
exf5 {[%clk 0:02:37.7]} 13... gxf5 {[%clk 0:02:56.8]} 14. Qe2 {[%clk 0:02:36.3]}
14... Nf6 {[%clk 0:02:51.5]} 15. f4 {[%clk 0:02:35.7]} 15... Nd4 {[%clk
0:02:41.9]} 16. Qd2 {[%clk 0:02:32.8]} 16... Nh5 {[%clk 0:02:38.6]} 17. Nf3
{[%clk 0:02:24.7]} 17... Rg8 {[%clk 0:02:26.6]} 18. Ne2 {[%clk 0:02:08.4]} 18...
Nxe2 {[%clk 0:02:00.3]} 19. Qxe2 {[%clk 0:02:07.5]} 19... Nxg3 {[%clk
0:01:53.9]} 20. Kxg3 {[%clk 0:02:06.2]} 20... exf4+ {[%clk 0:01:53.9]} 21. Bxf4
{[%clk 0:01:53.8]} 21... Be5+ {[%clk 0:01:53.7]} 22. Kh2 {[%clk 0:01:54.4]}
22... Bxf4+ {[%clk 0:01:53.6]} 23. Kh1 {[%clk 0:01:55.3]} 23... Qf6 {[%clk
0:01:50.8]} 24. Nd2 {[%clk 0:01:51.7]} 24... Be5 {[%clk 0:01:43.8]} 25. Nc4
{[%clk 0:01:50.7]} 25... Be6 {[%clk 0:01:24.4]} 26. Nxe5 {[%clk 0:01:49.7]}
26... dxe5 {[%clk 0:01:24.8]} 27. Rae1 {[%clk 0:01:50.2]} 27... Rae8 {[%clk
0:00:59.3]} 28. Qxe5 {[%clk 0:01:46.1]} 28... Qg5 {[%clk 0:00:52.6]} 29. Qh2
{[%clk 0:01:28.4]} 29... f4 {[%clk 0:00:33.8]} 30. Be4+ {[%clk 0:01:07.5]} 30...
Kh8 {[%clk 0:00:33]} 31. Rxf4 {[%clk 0:01:00.4]} 31... Bxh3 {[%clk 0:00:23.4]}
32. Rf2 {[%clk 0:00:59.9]} 32... Bd7 {[%clk 0:00:13.2]} 33. Rg2 {[%clk
0:00:56.6]} 33... Qf6 {[%clk 0:00:11.1]} 34. Rf1 {[%clk 0:00:52.5]} 34... Qxf1+
{[%clk 0:00:09.7]} 35. Qg1 {[%clk 0:00:51.6]} 35... Qxg1+ {[%clk 0:00:09.5]} 36.
Kxg1 {[%clk 0:00:52]} 36... Rxg2+ {[%clk 0:00:10.4]} 37. Kxg2 {[%clk 0:00:52.7]}
37... Bc6 {[%clk 0:00:09.9]} 38. Bxc6 {[%clk 0:00:51.7]} 38... bxc6 {[%clk
0:00:10.8]} 39. Kf3 {[%clk 0:00:52.2]} 39... Kg7 {[%clk 0:00:11.7]} 40. Kf4
{[%clk 0:00:52.4]} 40... Kf6 {[%clk 0:00:12.6]} 0-1

[Event "*** Titled Tuesday Blitz"]
[Site "Chess.com"]
[Date "2021.02.16"]
[Round "9"]
[White "IwkooO"]
[Black "kobemagic"]
[Result "1-0"]
[WhiteElo "2627"]
[BlackElo "2415"]
[TimeControl "180+1"]
[EndTime "11:47:34 PST"]
[Termination "IwkooO won by resignation"]

1. e4 {[%clk 0:03:00.9]} 1... Nf6 {[%clk 0:02:59.7]} 2. e5 {[%clk 0:03:00.9]}
2... Nd5 {[%clk 0:02:59.9]} 3. d4 {[%clk 0:03:01.4]} 3... d6 {[%clk 0:03:00.2]}
4. c4 {[%clk 0:03:01.6]} 4... Nb6 {[%clk 0:03:00.2]} 5. f4 {[%clk 0:03:02.2]}
5... dxe5 {[%clk 0:03:00.1]} 6. fxe5 {[%clk 0:03:01.1]} 6... c5 {[%clk
0:03:00.2]} 7. d5 {[%clk 0:03:00]} 7... g6 {[%clk 0:03:00.3]} 8. Nc3 {[%clk
0:02:57.9]} 8... Bg7 {[%clk 0:03:00.4]} 9. Be3 {[%clk 0:02:52.9]} 9... O-O
{[%clk 0:02:53.5]} 10. Bxc5 {[%clk 0:02:51.9]} 10... Bxe5 {[%clk 0:02:52.1]} 11.
Bd4 {[%clk 0:02:52]} 11... Bxd4 {[%clk 0:02:33.5]} 12. Qxd4 {[%clk 0:02:45.2]}
12... e5 {[%clk 0:02:23.8]} 13. Qe3 {[%clk 0:02:39.3]} 13... Nxc4 {[%clk
0:02:15.8]} 14. Bxc4 {[%clk 0:02:23.3]} 14... Qh4+ {[%clk 0:02:15.4]} 15. g3
{[%clk 0:02:15.4]} 15... Qxc4 {[%clk 0:02:14.7]} 16. Nf3 {[%clk 0:02:15.8]}
16... Re8 {[%clk 0:01:49.3]} 17. O-O-O {[%clk 0:02:01.1]} 17... Nd7 {[%clk
0:01:31.7]} 18. Kb1 {[%clk 0:01:58.3]} 18... Nc5 {[%clk 0:01:06.9]} 19. Nxe5
{[%clk 0:01:30.5]} 19... Bf5+ {[%clk 0:01:04.9]} 20. Ka1 {[%clk 0:01:30.3]}
20... Qb4 {[%clk 0:00:39]} 21. Qf4 {[%clk 0:01:16.1]} 21... Qa5 {[%clk
0:00:33.5]} 22. a3 {[%clk 0:01:14.8]} 22... Rac8 {[%clk 0:00:26.3]} 23. Nc4
{[%clk 0:01:13.8]} 23... Qa6 {[%clk 0:00:20.3]} 24. Nd6 {[%clk 0:01:08.8]} 24...
Nb3+ {[%clk 0:00:18.9]} 25. Ka2 {[%clk 0:01:07.9]} 25... Rxc3 {[%clk 0:00:19.1]}
26. Nxe8 {[%clk 0:00:53.6]} 26... Rc2 {[%clk 0:00:17]} 27. Qd6 {[%clk 0:00:51]}
27... Nc5 {[%clk 0:00:13.5]} 28. Qxa6 {[%clk 0:00:48.9]} 28... bxa6 {[%clk
0:00:11.6]} 29. d6 {[%clk 0:00:48.8]} 29... Bd7 {[%clk 0:00:09.2]} 30. Nf6+
{[%clk 0:00:48.7]} 30... Kg7 {[%clk 0:00:09.8]} 31. Nxd7 {[%clk 0:00:46.3]}
31... Nxd7 {[%clk 0:00:10.7]} 32. Rhe1 {[%clk 0:00:46.8]} 32... Nc5 {[%clk
0:00:07.3]} 33. d7 {[%clk 0:00:42.5]} 1-0